[Event "55th Biel Festival MTO 2022"]
[Site "Biel"]
[Date "2022.07.20"]
[Round "7.8"]
[White "Martirosyan Haik M."]
[Black "Licznerski Lukasz"]
[Result "1/2-1/2"]
[ECO "A16"]
[WhiteElo "2672"]
[BlackElo "2451"]
[Annotator "TA"]
[PlyCount "122"]
[EventDate "2022.07.13"]
[EventType "swiss"]
[EventCountry "SUI"]
[SourceTitle "playchess.com"]
[Source "ChessBase"]
[SourceQuality "1"]
[TimeControl "40/5400+30:1800+30"]

{[%evp 9,122,17,18,25,48,31,48,58,58,44,54,56,65,41,38,29,27,30,69,0,85,0,7,14,14,27,57,53,46,18,29,0,0,0,0,4,19,-10,0,0,0,0,0,0,0,0,0,0,0,0,0,0,0,0,0,0,0,0,0,0,0,0,0,0,0,0,0,0,0,0,0,0,0,0,0,0,0,0,0,0,0,0,0,0,0,0,0,0,0,0,0,0,0,0,0,0,0,0,0,0,0,0,0,0,0,0,0,0,0,0,0,0,0,0,0]} 1. Nf3 {[%emt 0:00:05]} Nf6 {[%emt 0:00:41]} 2. c4 {[%emt 0:00:09]} g6 {[%emt 0:00:37]} 3. Nc3 {[%emt 0:00:11]} d5 {[%emt 0:00:17]} 4. cxd5 {[%emt 0:00:14]} Nxd5 {[%emt 0:00:02]} 5. h4 {[%emt 0:00:37]} Bg7 {[%emt 0:01:18]} 6. e4 {[%emt 0:01:30] A16: English Opening: 1...Nf6 with ...d5.} Nb6 {[%emt 0:22:11]} 7. d4 {[%emt 0:02:00][%cal Bd2d4,Bd4d5][%mdl 32]} Bg4 {[%emt 0:00:58]} 8. Be3 {[%emt 0:00:43] White is slightly better.} Nc6 {[%emt 0:22:00][%cal Og7d4]} 9. d5 {[%emt 0:02:19]} Ne5 {[%emt 0:00:01]} 10. Be2 $1 {[%emt 0:02:34]} O-O {[%emt 0:04:49]} 11. Nxe5 {[%emt 0:19:49]} Bxe2 {[%emt 0:00:07] [#]} 12. Qxe2 $146 {[%emt 0:01:32]} ({Predecessor:} 12. Nxf7 Bxd1 13. Nxd8 Bg4 14. Ne6 Bxe6 15. dxe6 Nc4 16. O-O-O Nxe3 17. fxe3 Bxc3 18. bxc3 {½-½ (67) Giri,A (2782)-Vachier Lagrave,M (2789) Leuven 2016}) 12... Bxe5 {[%emt 0:00:02]} 13. f4 {[%emt 0:00:45]} Bg7 {[%emt 0:02:15]} 14. O-O-O {[%emt 0:03:11]} (14. h5 $14) 14... Qd7 {[%emt 0:01:41]} (14... Bxc3 $11 15. bxc3 Qd6) 15. Bd4 {[%emt 0:03:47] White is more active.} (15. h5 $16) 15... Bxd4 $11 {[%emt 0:01:37]} 16. Rxd4 {[%emt 0:00:04]} e6 {[%emt 0:00:25]} 17. h5 {[%emt 0:02:18]} exd5 {[%emt 0:04:46]} 18. exd5 {[%emt 0:03:32]} Rae8 {[%emt 0:03:27]} 19. Qd2 {[%emt 0:03:52]} Qf5 {[%emt 0:05:41] Against Ne4} 20. Qf2 {[%emt 0:08:25]} Nc8 {[%emt 0:05:29] The position is equal.} 21. Qh4 {[%emt 0:02:28]} Nd6 {[%emt 0:05:35]} 22. hxg6 {[%emt 0:01:51]} Qxg6 {[%emt 0:00:01]} 23. Qh3 {[%emt 0:04:08]} f5 {[%emt 0:01:59]} 24. Rd3 {[%emt 0:01:08] [#] Threatens to win with Rg3.} Kh8 {[%emt 0:00:10]} 25. Qh4 {[%emt 0:02:41]} Rf7 {[%emt 0:02:01]} 26. Qf2 {[%emt 0:01:06]} Rg7 {[%emt 0:02:27]} 27. g3 {[%emt 0:05:49]} a6 {[%emt 0:00:12]} 28. Re1 {[%emt 0:01:46]} Rge7 {[%emt 0:00:26]} 29. Rde3 {[%emt 0:01:18]} Qf6 {[%emt 0:04:22]} 30. Rxe7 {[%emt 0:02:07]} Rxe7 {[%emt 0:00:02]} 31. Kc2 {[%emt 0:02:27]} Kg8 {[%emt 0:02:59]} 32. Kd3 {[%emt 0:02:07]} Ne4 {[%emt 0:01:59]} 33. Nxe4 {[%emt 0:03:38]} fxe4+ {[%emt 0:00:08]} 34. Rxe4 {[%emt 0:00:19][%mdl 4096] Endgame KQR-KQR} Qf5 {[%emt 0:00:40][%csl LRd5,LRe4]} 35. Qd4 {[%emt 0:00:05] Ke3 is the strong threat.} Qg6 {[%emt 0:01:05]} 36. g4 {[%emt 0:01:34]} Rxe4 {[%emt 0:01:23]} 37. Qxe4 {[%emt 0:00:05]} Qxg4 {[%emt 0:00:02] KQ-KQ} 38. Kc4 {[%emt 0:05:14]} Qd7 {[%emt 0:01:26]} 39. Qe5 {[%emt 0:02:02]} Qb5+ {[%emt 0:02:00]} 40. Kc3 {[%emt 0:00:01]} Qc5+ {[%emt 0:01:40]} 41. Kd3 {[%emt 0:34:28]} Qd6 {[%emt 0:02:40]} 42. Qf5 {[%emt 0:00:00]} Qg6 {[%emt 0:08:26]} 43. Qxg6+ {[%emt 0:00:00]} hxg6 {[%emt 0:00:02] KP-KP} 44. Kd4 {[%emt 0:00:00]} Kf7 {[%emt 0:01:01]} 45. b4 {[%emt 0:00:00]} Kf6 {[%emt 0:08:26]} 46. Ke4 {[%emt 0:00:00]} b6 {[%emt 0:09:24]} 47. a4 {[%emt 0:00:00]} Kf7 {[%emt 0:03:39]} 48. d6 {[%emt 0:00:00]} cxd6 {[%emt 0:00:20] [#] ( -> ...Ke6)} 49. Kd5 {[%emt 0:00:00]} Ke7 {[%emt 0:00:23]} 50. Kc6 {[%emt 0:00:00]} d5 $1 {[%emt 0:00:14]} 51. Kxd5 {[%emt 0:00:00] White wants to mate with Kc6. K3P-K3P} ({But not} 51. Kxb6 d4 52. b5 (52. Kxa6 {is a self mate.} d3 53. Kb5 d2 54. Kb6 d1=Q 55. Kc5 Qd6+ 56. Kc4 Qd1 57. Kc5 Qc1+ 58. Kd5 Qxf4 59. b5 Qxa4 60. b6 Qb5+ 61. Kd4 Qxb6+ 62. Ke4 Ke6 63. Kf3 Kf5 64. Kg3 Qe3+ 65. Kh2 Kg4 66. Kh1 Kf3 67. Kh2 Qf2+ 68. Kh3 Qg3#) 52... axb5 $17) 51... Kd7 {[%emt 0:00:01]} 52. a5 {[%emt 0:05:20]} b5 {[%emt 0:00:03]} 53. Ke4 {[%emt 0:00:36] White threatens Kd5 and mate.} Ke6 {[%emt 0:00:15]} 54. Ke3 {[%emt 0:00:13]} Ke7 {[%emt 0:00:17]} 55. Kf3 {[%emt 0:00:13]} Kf7 {[%emt 0:00:11]} 56. Ke3 {[%emt 0:01:07]} Ke7 {[%emt 0:00:02]} 57. Kf3 {[%emt 0:01:13]} Kf7 {[%emt 0:00:01]} 58. Kf2 {[%emt 0:02:29]} Kf6 {[%emt 0:00:21]} 59. Ke2 {[%emt 0:00:55]} Ke6 {[%emt 0:00:08]} 60. Kd2 {[%emt 0:01:08]} Kd6 {[%emt 0:00:25]} (60... Kf5 $5 61. Ke3 Kg4 $11) 61. Ke3 {[%emt 0:00:11] Strongly threatening Kd4.} Ke7 {[%emt 0:00:04] Weighted Error Value: White=0.07 (flawless) /Black=0.06 (flawless)} 1/2-1/2

[Event "55th Biel Festival MTO 2022"]
[Site "Biel"]
[Date "2022.07.20"]
[Round "7.9"]
[White "Lagarde Maxime"]
[Black "Mohammad Nubairshah Shaikh"]
[Result "1/2-1/2"]
[ECO "B19"]
[WhiteElo "2631"]
[BlackElo "2445"]
[Annotator "TA"]
[PlyCount "152"]
[EventDate "2022.07.13"]
[EventType "swiss"]
[EventCountry "SUI"]
[SourceTitle "playchess.com"]
[Source "ChessBase"]
[SourceQuality "1"]
[TimeControl "40/5400+30:1800+30"]

{[%evp 18,152,8,7,19,0,0,0,0,0,23,9,72,81,70,58,41,66,72,56,39,46,47,-138,-133,-136,-138,-175,-176,-171,-141,-158,-8,-8,0,-43,-29,-52,0,0,0,-31,-35,-209,-218,-221,-162,-241,-223,-285,-277,-288,-284,-404,-294,-408,-135,-134,-125,-116,0,0,122,0,0,0,0,0,0,0,0,0,0,0,0,0,0,0,0,0,0,0,0,0,0,-12,-15,-25,-12,-18,-18,-20,-20,-18,-13,-12,-13,-15,-20,-21,0,-8,0,0,0,0,0,0,0,0,0,-29,-8,-8,0,-45,0,-47,-47,-47,-47,-47,-47,-49,-47,-47,-44,-43,0,0,0,-39,0,0,0,-34,0]} 1. e4 {[%emt 0:03:42]} c6 {[%emt 0:09:43]} 2. d4 {[%emt 0:00:07]} d5 {[%emt 0:00:05]} 3. Nc3 {[%emt 0:00:17][%cal Bb1c3,Bc3e4,Be4g3][%mdl 32]} dxe4 {[%emt 0:00:08]} 4. Nxe4 {[%emt 0:00:05]} Bf5 {[%emt 0:00:03]} 5. Ng3 {[%emt 0:00:06]} Bg6 {[%emt 0:00:04]} 6. h4 {[%emt 0:00:07]} h6 {[%emt 0:00:15]} 7. Nf3 {[%emt 0:00:13]} Nd7 {[%emt 0:00:29]} 8. Bd3 {[%emt 0:00:44]} Bxd3 {[%emt 0:00:35]} 9. Qxd3 {[%emt 0:00:05]} e6 {[%emt 0:00:03]} 10. Bf4 {[%emt 0:00:44]} Qa5+ {[%emt 0:01:18] B19: Classical Caro-Kann: 4...Bf5 main line.} 11. c3 {[%emt 0:02:51]} Ngf6 {[%emt 0:00:09]} 12. O-O {[%emt 0:01:58]} Be7 {[%emt 0:02:21] The position is equal.} 13. Rfe1 {[%emt 0:08:19]} Nh5 {[%emt 0:09:39]} 14. Be5 {[%emt 0:16:56]} Nxg3 {[%emt 0:08:47]} (14... Nhf6 $1 $11) 15. Bxg7 $16 {[%emt 0:01:10]} (15. fxg3 Nxe5 16. Nxe5 (16. Rxe5 Qc7 $11) 16... O-O $11) 15... Rg8 {[%emt 0:00:34]} 16. Qh7 {[%emt 0:00:05]} Rxg7 {[%emt 0:02:01]} 17. Qxg7 {[%emt 0:00:04]} Nf5 {[%emt 0:00:05][%csl LRg7,LRh4][%cal Bg3f5,Bf5d6,Bd6f7][%mdl 32]} 18. Qg8+ {[%emt 0:00:07]} Nf8 $1 {[%emt 0:06:17]} 19. Ne5 {[%emt 0:02:34]} Nd6 {[%emt 0:04:32] [#]} 20. Nxf7 $146 {[%emt 0:21:28]} ({Predecessor:} 20. g3 c5 21. dxc5 Qxc5 22. Rad1 Rd8 23. Rd4 Rd7 24. Rf4 a5 25. Nxf7 Nxf7 26. Rxf7 {½-½ (56) Grishin,A (2585)-Csima,J (2225) ICCF corr 1997}) 20... Nxf7 $17 {[%emt 0:00:44]} 21. Rxe6 {[%emt 0:00:05] [#]} Kd7 $1 {[%emt 0:04:09][%csl LRe6,LRh4]} 22. Re3 {[%emt 0:05:11]} (22. Rae1 $2 Nxe6 23. Qxa8 Nfd8 $19) (22. Rxe7+ Kxe7) 22... Qh5 {[%emt 0:06:35]} 23. Rae1 {[%emt 0:00:17]} Re8 {[%emt 0:04:03]} (23... Bxh4 $2 24. Rf3 Re8 25. Rxf7+ Re7 26. Rexe7+ Bxe7 27. Qxf8 $18 (27. Rxf8 Qd1+ 28. Kh2 Qh5+ 29. Kg3 Bd6+ 30. f4 Bxf8 $14)) 24. d5 {[%emt 0:15:21] aiming for dxc6+.} cxd5 {[%emt 0:04:23]} ({Better is} 24... Qg6 $17 25. dxc6+ bxc6 26. Qxg6 Nxg6) 25. Qg7 $11 {[%emt 0:01:33]} a6 {[%emt 0:05:01]} (25... Qg6 $5 26. Qd4 Qc6 $11) 26. Qd4 {[%emt 0:05:16]} (26. b3 $5 {[%cal Rc3c4]}) 26... Nd6 {[%emt 0:19:45]} 27. Qa4+ $1 {[%emt 0:03:15]} (27. Re5 $2 Bf6 28. Rxe8 Bxd4 $19) 27... Kd8 {[%emt 0:00:47] And now ...Nc4 would win.} (27... Nb5 $5 {[%cal Rf8g6]} 28. b3 d4 29. cxd4 Ng6 $17) 28. Qa5+ {[%emt 0:06:30]} Kd7 {[%emt 0:00:04] White must now prevent ...Nc4.} 29. Qa4+ {[%emt 0:00:43]} (29. Re5 $2 Bd8 30. Qxd5 Rxe5 31. Qxe5 (31. Rxe5 $2 Qxh4 32. g3 Qg4 $19) 31... Qxe5 32. Rxe5 Bxh4 $19) 29... Nb5 {[%emt 0:02:31]} 30. Re5 $2 {[%emt 0:00:53]} (30. b3 $1 $15) 30... Qf7 $19 {[%emt 0:01:29]} 31. Qg4+ {[%emt 0:01:49]} Kc7 {[%emt 0:02:47]} 32. c4 {[%emt 0:00:20]} (32. Rf5 {was worth a try.} Qg6 33. Qxg6 Nxg6 34. Re6 Nxh4 35. Rxd5) 32... Nd6 $1 {[%emt 0:05:24]} (32... dxc4 33. Rf5 Qg6 34. Rxe7+ Rxe7 35. Qxc4+ Kd7 36. Rxf8 Re1+ 37. Kh2 Qd6+ 38. Rf4 $17) 33. cxd5 {[%emt 0:00:44]} Ng6 {[%emt 0:01:26]} 34. Re6 {[%emt 0:01:29]} Nxh4 {[%emt 0:00:08] ...Kb8 is the strong threat.} (34... Nf8 35. Rxh6 Qxd5 36. Rh5 $19) 35. Rxh6 {[%emt 0:01:54]} (35. Rxe7+ $142 Rxe7 36. Rc1+ Kb8 37. Qxh4) 35... Ndf5 {[%emt 0:00:45]} 36. Rhe6 {[%emt 0:00:50]} Rg8 $2 {[%emt 0:00:44]} (36... Kb8 $19 {[%cal Oh4g2] and Black stays clearly on top. Threatens to win with ...Nxg2!} 37. Qf4+ Ka7) 37. Rxe7+ $17 {[%emt 0:00:29]} (37. Qf4+ $2 Bd6 38. Rxd6 Rxg2+ 39. Kf1 Ng3+ $1 {[%mdl 512]} 40. fxg3 Qxf4+ 41. gxf4 Kxd6 $19) 37... Nxe7 {[%emt 0:00:01]} 38. d6+ {[%emt 0:00:28][%mdl 64] Decoy} Kxd6 {[%emt 0:00:56]} (38... Kb8 $17 39. dxe7 Rxg4 40. e8=Q+ Qxe8 41. Rxe8+ Kc7) 39. Qb4+ $11 {[%emt 0:00:06]} (39. Qxh4 $2 Nc6 40. a4 Qg7 41. Qf4+ Kd7 $19) 39... Kc6 {[%emt 0:00:16]} (39... Kd7 $11 40. Qxb7+ Kd6 41. Qb4+ Kd7 42. Rd1+ (42. Qxh4 Nc6 $15) 42... Nd5 43. Qb7+ (43. Qxh4 Qf3 $11) 43... Ke8 44. Qc8+ Ke7 45. Qc5+ Kf6 46. Rxd5 Nf3+ 47. Kf1 Nh2+ 48. Kg1 Nf3+ 49. Kf1 Nh2+ 50. Kg1 Nf3+) 40. Rc1+ {[%emt 0:00:33] Really sharp!} (40. Rxe7 $16 {Intending Qc3+ and mate.} Rxg2+ 41. Kh1 Rg1+ 42. Kxg1 Qg6+ 43. Kf1 Qd3+ 44. Re2 Qh3+ 45. Ke1 Nf3+ 46. Kd1 Qf1+ {[#]} 47. Re1 $1 Qd3+ 48. Kc1 Nxe1 49. Qxe1) 40... Kd7 {[%emt 0:00:08]} 41. Qxb7+ {[%emt 0:02:15]} Ke6 {[%emt 0:18:50]} ({Resist} 41... Ke8 42. Qa8+ Kd7 43. Rd1+ (43. Qb7+ Ke6 $11) 43... Ke6 44. Qe4+ Kf6 45. Qxh4+ Kg7 46. Rd6 $16 (46. Rd7 Kf8 $16)) 42. Qe4+ {[%emt 0:08:56]} Kd6 {[%emt 0:05:02]} 43. Qb4+ {[%emt 0:01:25]} Ke6 {[%emt 0:01:26]} 44. Re1+ {[%emt 0:03:14]} Kd7 {[%emt 0:01:30]} 45. Qb7+ {[%emt 0:07:25]} Kd6 {[%emt 0:00:12]} 46. Qb6+ {[%emt 0:01:15]} Kd7 {[%emt 0:01:21]} 47. Qa7+ {[%emt 0:02:49]} Kd6 {[%emt 0:01:09]} 48. Qb6+ {[%emt 0:03:00]} Kd7 {[%emt 0:00:03]} 49. Qb7+ {[%emt 0:00:09]} Kd6 {[%emt 0:00:48] ( -> ...Nf3+)} 50. Qb4+ {[%emt 0:00:08]} Kd7 {[%emt 0:00:34]} 51. Qxh4 {[%emt 0:00:36]} Nc6 {[%emt 0:00:44] Inhibits Qd4+.} 52. Qe4 {[%emt 0:01:11]} Rg5 {[%emt 0:01:37]} 53. Rd1+ {[%emt 0:01:41]} Kc7 {[%emt 0:00:18]} 54. b3 {[%emt 0:01:41]} Re5 {[%emt 0:01:08]} 55. Qd3 {[%emt 0:00:15]} Kb6 {[%emt 0:00:44]} 56. g3 {[%emt 0:00:38]} (56. Qd6 $2 Re2 57. Qg3 Rxa2 58. Qe3+ Kb7 $19) 56... Qe6 {[%emt 0:00:32]} 57. Kg2 {[%emt 0:01:30]} Rh5 {[%emt 0:00:13]} 58. Rh1 {[%emt 0:00:13] Inhibits Qh3+.} Rd5 {[%emt 0:00:34]} 59. Qc4 {[%emt 0:00:35]} Re5 {[%emt 0:01:23]} (59... Qd7 {is interesting.} 60. Rh6 Rd4 61. Qe6 Qxe6 62. Rxe6 Kc5) 60. Qxe6 {[%emt 0:00:20]} (60. Rh4 {seems wilder.} Qd6 61. b4 Qd5+ 62. Qxd5 Rxd5 63. g4) 60... Rxe6 {[%emt 0:00:01][%mdl 4096] Endgame KRN-KR} 61. g4 {[%emt 0:00:16]} Kc5 {[%emt 0:00:31]} 62. g5 {[%emt 0:00:43]} Kd5 {[%emt 0:00:41]} 63. Kg3 {[%emt 0:00:37]} Nd4 {[%emt 0:00:31]} 64. b4 {[%emt 0:01:22]} Re2 {[%emt 0:00:20]} 65. a4 {[%emt 0:00:11]} Ke5 {[%emt 0:01:03]} 66. Rd1 {[%emt 0:00:28][%cal Ob4b5]} Ne6 {[%emt 0:01:17]} 67. g6 {[%emt 0:00:23]} (67. Rb1 $11) 67... Rb2 $15 {[%emt 0:00:50]} 68. Rd7 {[%emt 0:00:46] Strongly threatening g7.} Rb3+ {[%emt 0:00:36]} 69. f3 {[%emt 0:00:17]} Rxb4 {[%emt 0:01:12]} 70. Rf7 {[%emt 0:00:09]} Rb1 {[%emt 0:00:18]} (70... Rf4 $5 71. Ra7 (71. Rxf4 Nxf4 72. g7 Nh5+ 73. Kg4 Nxg7 $19) (71. g7 $2 Rxf7 72. g8=Q Rg7+ 73. Qxg7+ Nxg7 $19) 71... Rf6 72. f4+ Kf5 73. Rxa6 Rxg6+ 74. Kf2 Rh6 $11) 71. Kf2 {[%emt 0:00:49][%cal Of3f4] Prevents Rg1.} Rb8 {[%emt 0:00:24]} 72. Ke3 {[%emt 0:00:23]} Rb3+ {[%emt 0:00:23]} 73. Kf2 {[%emt 0:00:04]} Rb8 {[%emt 0:00:38]} 74. Ke3 $1 {[%emt 0:00:05]} Rb3+ {[%emt 0:00:45]} 75. Kf2 {[%emt 0:00:07]} Rb8 {[%emt 0:00:32]} 76. Ke3 $1 {[%emt 0:00:10]} Rb3+ {[%emt 0:00:26] And White is the lucky defender.  Weighted Error Value: White=0.21 (precise) /Black=0.28 (precise)} 1/2-1/2

[Event "55th Biel Festival MTO 2022"]
[Site "Biel"]
[Date "2022.07.20"]
[Round "7.10"]
[White "Krishna C R G"]
[Black "Puranik Abhimanyu"]
[Result "1/2-1/2"]
[ECO "A64"]
[WhiteElo "2430"]
[BlackElo "2612"]
[Annotator "TA"]
[PlyCount "180"]
[EventDate "2022.07.13"]
[EventType "swiss"]
[EventCountry "SUI"]
[SourceTitle "playchess.com"]
[Source "ChessBase"]
[SourceQuality "1"]
[TimeControl "40/5400+30:1800+30"]

{[%evp 22,180,0,-8,0,12,22,10,24,0,0,-11,0,-10,0,0,-9,-23,0,8,13,-39,-28,-58,-64,-73,-73,-68,-58,-94,-91,-108,-105,-107,-120,-122,-100,-120,-82,-79,-79,-129,-125,-140,-67,-116,-104,-302,-218,-214,-210,-339,-358,-491,-152,-160,-161,-154,-134,-127,-127,-149,-8,-9,15,10,208,198,195,-317,-304,-406,-406,-424,-66,-66,-66,-66,-66,-66,-66,-66,-66,-114,-114,-114,-114,-114,-114,-114,-114,-114,-85,-114,-114,-114,-114,-114,-114,-114,-114,-114,-114,-114,-114,-114,-114,-114,-114,-114,-113,-102,-102,-102,-102,-113,-102,-92,-66,-66,-70,-70,-70,-70,-70,-70,-70,-63,-70,-70,-70,-70,-85,-77,-77,-77,0,-77,0,-85,0,-85,0,-85,-18,-18,-18,-18,0,0,0,-18,-18,-18,-18,-18,-18,-18,-18,-18,0]} 1. d4 {[%emt 0:00:07]} Nf6 {[%emt 0:00:03]} 2. Nf3 {[%emt 0:00:13]} g6 {[%emt 0:00:06]} 3. c4 {[%emt 0:00:50]} Bg7 {[%emt 0:00:09]} 4. g3 {[%emt 0:00:07]} c5 {[%emt 0:00:37]} 5. d5 {[%emt 0:01:44]} d6 {[%emt 0:00:26]} 6. Nc3 {[%emt 0:00:12]} e6 {[%emt 0:00:20]} 7. Bg2 {[%emt 0:00:19]} exd5 {[%emt 0:00:08]} 8. cxd5 {[%emt 0:00:06]} O-O {[%emt 0:00:14]} 9. O-O {[%emt 0:00:08]} Re8 {[%emt 0:00:04]} 10. Nd2 {[%emt 0:02:34]} Nbd7 {[%emt 0:01:01]} 11. e4 {[%emt 0:13:25]} a6 {[%emt 0:06:44]} 12. a4 {[%emt 0:00:18]} Qc7 {[%emt 0:05:59] A64: Modern Benoni: Fianchetto Variation: 9...Nbd7 10 Nd2 a6 11 a4 Re8.} 13. Nc4 {[%emt 0:14:30]} Ne5 $1 {[%emt 0:02:04]} 14. Nxe5 {[%emt 0:01:00]} Rxe5 {[%emt 0:00:07]} 15. Bf4 {[%emt 0:00:07]} Re8 {[%emt 0:00:51] [#]} 16. Rc1 $146 {[%emt 0:00:52][%cal Ob2b4]} ({Predecessor:} 16. Qd2 Ng4 17. Rac1 Bd7 18. b3 Rac8 19. h3 Ne5 20. Kh2 b5 21. axb5 axb5 22. Ne2 {0-1 (31) Shannon,P (1934)-Leonard,A (2326) ICCF email 2016}) 16... Qb8 {[%emt 0:28:21]} 17. a5 {[%emt 0:05:14]} b5 {[%emt 0:00:26] Inhibits Na4.} 18. axb6 {[%emt 0:00:45]} Qxb6 {[%emt 0:00:17]} 19. h3 {[%emt 0:15:35]} (19. Qd2 {is interesting.} Ng4 20. Na4 Qb5 21. Nc3) 19... Nd7 {[%emt 0:06:48]} 20. Qa4 {[%emt 0:10:22]} Rb8 {[%emt 0:02:25]} 21. Rfd1 {[%emt 0:01:07]} (21. Nd1 $11) 21... Rf8 $15 {[%emt 0:05:20]} 22. Rd2 {[%emt 0:27:35]} Ne5 {[%emt 0:00:41]} 23. Nd1 {[%emt 0:00:02]} Bd7 {[%emt 0:02:22]} 24. Qa3 {[%emt 0:00:02]} Qb4 {[%emt 0:04:45]} 25. Qxa6 {[%emt 0:05:11] [#]} Bxh3 $1 {[%emt 0:00:25]} 26. Qe2 {[%emt 0:00:19]} (26. Nc3 Ra8) 26... Bg4 {[%emt 0:03:00]} 27. f3 {[%emt 0:00:17]} Bd7 {[%emt 0:00:09]} 28. Nc3 {[%emt 0:00:28]} Rb6 {[%emt 0:03:29]} 29. Rdc2 {[%emt 0:00:32]} Rfb8 {[%emt 0:00:35]} 30. Ra1 {[%emt 0:00:47]} h5 {[%emt 0:01:51]} 31. Bf1 {[%emt 0:00:20]} (31. Kh2 $142) 31... R6b7 {[%emt 0:03:54]} 32. Ra6 {[%emt 0:00:17]} c4 {[%emt 0:00:30]} ({Black should try} 32... Qb3 $1 $17 {[%cal Oe5f3] Hoping for ...Nxf3+!} 33. Bg2 (33. Rxd6 Nxf3+ 34. Qxf3 Qxc2 $17) 33... Nc4 34. Bxd6 Nxd6 35. Rxd6 Be5 36. Rxd7 Rxd7) 33. Be3 {[%emt 0:01:02]} (33. Qe3 $15 {should be considered.}) 33... Nd3 {[%emt 0:01:25][%cal Rd3b2]} 34. Na2 $2 {[%emt 0:00:25]} (34. Ra2 $17) 34... Qb5 {[%emt 0:01:28]} 35. Rxd6 {[%emt 0:00:19]} Be5 $1 {[%emt 0:00:40]} 36. Rxd7 {[%emt 0:00:44]} (36. Nc3 $142 Qb3 37. Rxd7 Rxd7 38. f4) 36... Qxd7 $19 {[%emt 0:01:02]} (36... Rxd7 37. Nc3 Qa5 38. f4 Bxc3 39. bxc3 $17) 37. f4 {[%emt 0:00:31] [#]} Bg7 {[%emt 0:00:05]} (37... Rxb2 $1 $19 {has better winning chances.} 38. fxe5 Qa4) 38. Rxc4 $17 {[%emt 0:00:19]} Rxb2 {[%emt 0:00:45]} 39. Qxd3 {[%emt 0:00:42]} Qg4 {[%emt 0:01:04]} 40. Bf2 {[%emt 0:00:29]} Rxa2 {[%emt 0:00:40]} 41. d6 {[%emt 0:03:16]} h4 {[%emt 0:03:09]} (41... Ra1 $17 42. Kg2 Rd1) 42. e5 $1 $11 {[%emt 0:02:29]} ({Avoid the trap} 42. d7 $2 hxg3 43. d8=Q+ Rxd8 44. Qxd8+ Kh7 $19) 42... h3 {[%emt 0:28:20][%cal Oh3h2] aiming for ...h2+!} 43. Rc2 {[%emt 0:06:40][%mdl 1024] White has compensation.} Ra1 {[%emt 0:02:23]} (43... Rxc2 $11 {and Black is okay.} 44. Qxc2 g5) 44. Kh2 $18 {[%emt 0:01:21]} Bf8 {[%emt 0:03:33] ...Rbb1 is the strong threat.} 45. Bd4 $4 {[%emt 0:08:39][%mdl 8192] Chess con chili.} ({Wrong is} 45. Bxh3 $2 Rh1+ $1 46. Kxh1 Qxh3+ 47. Kg1 Rb1+ 48. Be1 Rxe1+ 49. Kf2 Rh1 $19) (45. Be2 $1 $18 {[%cal Re2g4] was the only winning move.} Qe6 46. Bf3) 45... Rd1 $19 {[%emt 0:02:14]} 46. Rd2 {[%emt 0:00:20]} Rbb1 {[%emt 0:01:16]} 47. d7 {[%emt 0:04:25]} Rxf1 $2 {[%emt 0:03:36]} (47... Rxd2+ 48. Qxd2 Qxd7 49. Bxh3 $19) (47... Be7 $19 48. Bg1 Rxf1 49. d8=Q+ Bxd8 50. Qxd8+ Kh7) 48. Qxf1 {[%emt 0:00:38]} Rxf1 {[%emt 0:00:08]} 49. d8=Q {[%emt 0:00:09] Strongly threatening Bc5.} Qf3 {[%emt 0:00:17][%csl Gf3][%cal Rf1h1]} 50. Bg1 {[%emt 0:00:07] [#]} Rd1 $1 {[%emt 0:01:01]} 51. Qd4 {[%emt 0:02:49]} Qf1 $1 {[%emt 0:02:46][%cal Og8h7]} 52. Qf2 {[%emt 0:03:46]} (52. e6 $1 $15) 52... Qxf2+ $17 {[%emt 0:00:14]} 53. Rxf2 {[%emt 0:00:01][%mdl 4096] Endgame KRB-KRB} Bc5 {[%emt 0:01:07]} 54. Rf1 {[%emt 0:00:14]} Rxf1 {[%emt 0:00:09]} 55. Bxc5 {[%emt 0:00:05] [#] KR-KB} g5 $1 {[%emt 0:00:45]} 56. fxg5 {[%emt 0:00:07]} Rf5 {[%emt 0:00:03]} 57. Be3 {[%emt 0:03:22]} Rxe5 {[%emt 0:00:22]} 58. Bf4 {[%emt 0:00:02]} Re4 {[%emt 0:00:15]} 59. Kxh3 {[%emt 0:00:02]} Kg7 {[%emt 0:00:10]} 60. Kh4 {[%emt 0:00:08]} Kg6 {[%emt 0:00:19]} 61. Kg4 {[%emt 0:00:02]} Re1 {[%emt 0:00:50]} 62. Bd2 {[%emt 0:00:03]} Ra1 {[%emt 0:00:33]} 63. Be3 {[%emt 0:00:04]} Ra4+ {[%emt 0:00:04]} 64. Bf4 {[%emt 0:00:03]} Rc4 {[%emt 0:00:29]} 65. Kh4 {[%emt 0:01:52]} Kf5 {[%emt 0:00:08] Threatens to win with ...Rc8.} 66. Kh5 {[%emt 0:00:01]} Rc6 {[%emt 0:00:33]} 67. Be3 {[%emt 0:00:14]} Rg6 {[%emt 0:00:53]} 68. Bf4 {[%emt 0:00:55]} Re6 {[%emt 0:00:07]} 69. Bc7 {[%emt 0:00:26]} Re8 {[%emt 0:02:34][%cal Re8h8]} 70. Kh6 $1 {[%emt 0:00:26]} Rg8 {[%emt 0:01:17]} 71. Bf4 {[%emt 0:00:13]} Kg4 {[%emt 0:00:06]} 72. Kh7 {[%emt 0:00:32]} Rg6 {[%emt 0:00:06]} 73. Kh8 {[%emt 0:00:15]} Kf5 {[%emt 0:00:12]} 74. Kh7 {[%emt 0:00:04]} Ke6 {[%emt 0:00:48]} 75. Be3 {[%emt 0:01:38]} Ke7 {[%emt 0:00:33]} 76. Bc5+ {[%emt 0:00:39]} Ke8 {[%emt 0:00:55]} 77. Be3 {[%emt 0:00:02]} Rd6 {[%emt 0:00:06]} 78. Kg7 {[%emt 0:00:23]} Rg6+ {[%emt 0:00:22]} 79. Kh7 {[%emt 0:00:30]} Ke7 {[%emt 0:00:07]} 80. Bc5+ $1 {[%emt 0:00:00]} Ke6 {[%emt 0:00:04]} 81. Be3 {[%emt 0:00:00]} Kf5 {[%emt 0:00:08]} 82. Bf4 {[%emt 0:00:00] [#]} Rb6 {[%emt 0:02:07]} ({Better is} 82... Ke4 $1 $17 83. Bc1 Kd3) 83. Kg7 $11 {[%emt 0:00:18] The position is equal.} Rb7 {[%emt 0:00:03]} 84. Kh6 {[%emt 0:00:29]} Kg4 {[%emt 0:00:12]} 85. Kg7 {[%emt 0:00:34]} Kf5 {[%emt 0:00:45]} 86. Kh6 {[%emt 0:00:07]} Re7 {[%emt 0:00:14]} 87. Kg7 {[%emt 0:01:01]} f6+ {[%emt 0:00:16]} 88. Kh6 {[%emt 0:02:51]} fxg5 {[%emt 0:00:04]} 89. Bxg5 {[%emt 0:00:03]} Re4 {[%emt 0:00:36]} 90. Bf4 {[%emt 0:00:09]} Rxf4 {[%emt 0:00:07] Weighted Error Value: White=0.39/Black=0.34} 1/2-1/2